fUST/lending_fUST_20250124
["ID","MTS","AMOUNT","RATE_DAILY","PERIOD"]
[350219713,1737701439287,-500.0,0.00019452,3]
[350219715,1737701439296,-500.0,0.00019452,3]
[350219717,1737701439307,-500.0,0.00019452,3]
[350219719,1737701439317,-500.0,0.00019452,3]
[350219721,1737701439326,-500.0,0.00019452,3]
[350219723,1737701439337,-500.0,0.00019452,3]
[350219725,1737701439346,-500.0,0.00019452,3]
[350219727,1737701439355,-777.78,0.00019452,2]
[350219729,1737701439364,-500.0,0.00019452,3]
[350219731,1737701439374,-500.0,0.00019452,3]
[350219733,1737701439383,-151.0,0.00019452,2]
[350219735,1737701439393,-151.0,0.00019452,2]
[350219737,1737701439402,-173.876996,0.00019452,2]
[350219739,1737701439412,-500.0,0.00019452,3]
[350219741,1737701439421,-500.0,0.00019452,3]
[350219743,1737701439430,-1570.85,0.00019452,3]
[350219745,1737701439440,-500.0,0.00019452,3]
[350219747,1737701439449,-522.34,0.00019452,3]
[350219749,1737701439459,-572.46328872,0.00019452,3]
[350219751,1737701439471,-2018.76,0.00019452,3]
[350219753,1737701439481,-500.0,0.00019452,3]
[350219755,1737701439492,-500.0,0.00019452,3]
[350219757,1737701439501,-151.0,0.00019452,2]
[350219759,1737701439511,-151.0,0.00019452,2]
[350219761,1737701439521,-500.0,0.00019452,3]
[350219763,1737701439530,-500.0,0.00019452,3]
[350219765,1737701439541,-500.0,0.00019452,3]
[350219767,1737701439555,-151.0,0.00019452,2]
[350219769,1737701439565,-151.0,0.00019452,2]
[350219771,1737701439576,-513.35,0.00019452,3]
[350219773,1737701439586,-500.0,0.00019452,3]
[350219775,1737701439595,-151.0,0.00019452,2]
[350219777,1737701439605,-151.0,0.00019452,2]
[350219779,1737701439615,-212.515962,0.00019452,2]
[350219781,1737701439625,-500.0,0.00019452,3]
[350219783,1737701439635,-267.179234,0.00019452,2]
[350219785,1737701439644,-500.0,0.00019452,3]
[350219787,1737701439653,-500.0,0.00019452,3]
[350219789,1737701439663,-151.0,0.00019452,2]
[350219791,1737701439672,-151.0,0.00019452,2]
[350219793,1737701439682,-500.0,0.00019452,3]
[350219795,1737701439692,-9905.63,0.00019452,3]
[350219797,1737701439701,-5779.19,0.00019452,3]
[350219799,1737701439711,-500.0,0.00019452,3]
[350219801,1737701439721,-500.0,0.00019452,3]
[350219803,1737701439730,-500.0,0.00019452,3]
[350219805,1737701439740,-500.0,0.00019452,3]
[350219807,1737701439749,-500.0,0.00019452,3]
[350219809,1737701439759,-500.0,0.00019452,3]
[350219811,1737701439769,-500.0,0.00019452,3]
[350219814,1737701439778,-500.0,0.00019452,3]
[350219817,1737701439787,-1099.24,0.00019452,3]
[350219819,1737701439797,-500.0,0.00019452,3]
[350219821,1737701439808,-500.0,0.00019452,3]
[350219823,1737701439818,-3086.27,0.00019452,3]
[350219825,1737701439827,-500.0,0.00019452,3]
[350219827,1737701439837,-658.39,0.00019452,3]
[350219829,1737701439846,-168.178346,0.00019452,2]
[350219831,1737701439855,-168.178346,0.00019452,2]
[350219832,1737701439865,-168.178346,0.00019452,2]
[350219833,1737701439875,-168.178346,0.00019452,2]
[350219834,1737701439885,-985.18,0.00019452,3]
[350219835,1737701439895,-500.0,0.00019452,3]
[350219836,1737701439906,-366.93917287,0.00019452,3]
[350219837,1737701439916,-500.0,0.00019452,3]
[350219838,1737701439925,-151.0,0.00019452,2]
[350219839,1737701439935,-500.0,0.00019452,3]
[350219840,1737701439944,-151.0,0.00019452,2]
[350219841,1737701439954,-1361.53,0.00019452,3]
[350219842,1737701439963,-500.0,0.00019452,3]
[350219843,1737701439972,-500.0,0.00019452,3]
[350219844,1737701439982,-1428.19,0.00019452,3]
[350219845,1737701439991,-605.861569,0.00019452,3]
[350219846,1737701440000,-500.0,0.00019452,3]
[350219847,1737701440010,-500.0,0.00019452,3]
[350219848,1737701440019,-500.0,0.00019452,3]
[350219849,1737701440028,-500.0,0.00019452,3]
[350219850,1737701440039,-500.0,0.00019452,3]
[350219851,1737701440048,-500.0,0.00019452,3]
[350219852,1737701440060,-511.23,0.00019452,3]
[350219853,1737701440069,-17282.4,0.00019452,3]
[350219854,1737701440079,-176.45593646,0.00019452,3]
[350219855,1737701440088,-1130.6,0.00019452,3]
[350219856,1737701440098,-500.0,0.00019452,3]
[350219857,1737701440107,-500.0,0.00019452,3]
[350219858,1737701440117,-2381.07,0.00019452,3]
[350219859,1737701440126,-500.0,0.00019452,3]
[350219860,1737701440136,-604.58,0.00019452,3]
[350219861,1737701440145,-500.0,0.00019452,3]
[350219862,1737701440155,-500.0,0.00019452,3]
[350219863,1737701440164,-5041.03,0.00019452,3]
[350219864,1737701440174,-207.025353,0.00019452,2]
[350219865,1737701440183,-207.025353,0.00019452,2]
[350219866,1737701440193,-500.0,0.00019452,3]
[350219867,1737701440202,-151.0,0.00019452,2]
[350219868,1737701440211,-500.0,0.00019452,3]
[350219870,1737701440220,-207.025353,0.00019452,2]
[350219871,1737701440230,-500.0,0.00019452,3]
[350219873,1737701440240,-207.025353,0.00019452,2]
[350219874,1737701440250,-500.0,0.00019452,3]
[350219875,1737701440259,-332.77507379,0.00019452,3]
[350219876,1737701440268,-500.0,0.00019452,3]
[350219877,1737701440278,-762.6,0.00019452,3]
[350219878,1737701440287,-1140.0,0.00019452,3]
[350219879,1737701440297,-500.0,0.00019452,3]
[350219880,1737701440309,-500.0,0.00019452,3]
[350219881,1737701440318,-500.0,0.00019452,3]
[350219882,1737701440328,-577.15,0.00019452,3]
[350219883,1737701440338,-500.0,0.00019452,3]
[350219884,1737701440348,-500.0,0.00019473,2]
[350219885,1737701440357,-500.0,0.00019473,2]
[350219886,1737701440368,-500.0,0.00019473,2]
[350219887,1737701440378,-500.0,0.00019473,2]
[350219888,1737701440388,-500.0,0.00019473,2]
[350219889,1737701440398,-161.59475688,0.00019473,2]
[350219890,1737701440408,-486.15627763,0.00019473,2]
[350219891,1737701440419,-178.36260611,0.00019473,2]
[350219892,1737701440429,-566.58304491,0.00019473,2]
[350219893,1737701440440,-1786.02928911,0.00019494,2]
[350219894,1737701440450,-440.119,0.0001952,2]
[350219895,1737701440460,-151.0,0.00019589,2]
[350219896,1737701440470,-151.0,0.00019589,2]
[350219897,1737701440481,-500.0,0.00019589,3]
[350219898,1737701440491,-500.0,0.00019589,3]
[350219899,1737701440501,-500.0,0.00019589,3]
[350219900,1737701440510,-151.0,0.00019589,2]
[350219901,1737701440521,-151.0,0.00019589,2]
[350219902,1737701440531,-500.0,0.00019589,3]
[350219903,1737701440540,-151.0,0.00019589,2]
[350219904,1737701440550,-500.0,0.00019589,3]
[350219905,1737701440562,-151.0,0.00019589,2]
[350219906,1737701440572,-505.93269703,0.00019589,3]
[350219907,1737701440581,-500.0,0.00019589,3]
[350219908,1737701440591,-263.041668,0.00019589,2]
[350219909,1737701440601,-263.041668,0.00019589,2]
[350219910,1737701440611,-296.766994,0.00019589,2]
[350219911,1737701440620,-500.0,0.00019589,3]
[350219912,1737701440631,-500.0,0.00019589,3]
[350219913,1737701440640,-500.0,0.00019589,3]
[350219914,1737701440649,-500.0,0.00019589,3]
[350219915,1737701440659,-500.0,0.00019589,3]
[350219916,1737701440669,-500.0,0.00019589,3]
[350219917,1737701440678,-508.64296992,0.00019589,3]
[350219918,1737701440688,-500.0,0.00019589,3]
[350219919,1737701440697,-566.4,0.00019589,3]
[350219920,1737701440707,-500.0,0.00019589,3]
[350219921,1737701440715,-500.0,0.00019589,3]
[350219922,1737701440725,-500.0,0.00019589,3]
[350219923,1737701440735,-500.0,0.00019589,3]
[350219925,1737701440745,-500.0,0.00019589,3]
[350219926,1737701440755,-500.0,0.00019589,3]
[350219927,1737701440764,-696.83,0.00019589,3]
[350219928,1737701440774,-500.0,0.00019589,3]
[350219929,1737701440784,-500.0,0.00019589,3]
[350219930,1737701440793,-500.0,0.00019589,3]
[350219931,1737701440805,-500.0,0.00019589,3]
[350219932,1737701440814,-544.78075,0.00019589,2]
[350219933,1737701440824,-544.78075,0.00019589,2]
[350219935,1737701440833,-446.29785688,0.00019589,3]
[350219937,1737701440842,-500.0,0.00019589,3]
[350219939,1737701440851,-173.04126,0.00019589,2]
[350219940,1737701440861,-173.04126,0.00019589,2]
[350219942,1737701440871,-500.0,0.00019589,3]
[350219944,1737701440880,-500.0,0.00019589,3]
[350219946,1737701440891,-163.19631633,0.00019589,3]
[350219948,1737701440900,-151.0,0.00019589,2]
[350219950,1737701440910,-441.05466675,0.00019589,3]
[350219952,1737701440919,-500.0,0.00019589,3]
[350219953,1737701440929,-500.0,0.00019589,3]
[350219954,1737701440938,-500.0,0.00019589,3]
[350219955,1737701440947,-500.0,0.00019589,3]
[350219956,1737701440957,-500.0,0.00019589,3]
[350219957,1737701440967,-500.0,0.00019589,3]
[350219958,1737701440977,-500.0,0.00019589,3]
[350219959,1737701440987,-580.92,0.00019589,3]
[350219960,1737701440997,-500.0,0.00019589,3]
[350219961,1737701441006,-500.0,0.00019589,3]
[350219962,1737701441016,-500.0,0.00019589,3]
[350219963,1737701441026,-500.0,0.00019589,3]
[350219964,1737701441035,-500.0,0.00019589,3]
[350219965,1737701441045,-500.0,0.00019589,3]
[350219966,1737701441055,-777.78,0.00019589,2]
[350219967,1737701441064,-500.0,0.00019589,3]
[350219968,1737701441074,-500.0,0.00019589,3]
[350219969,1737701441083,-151.0,0.00019589,2]
[350219970,1737701441093,-500.0,0.00019589,3]
[350219971,1737701441102,-1570.85,0.00019589,3]
[350219972,1737701441189,-500.0,0.00019589,3]
[350219973,1737701441199,-522.34,0.00019589,3]
[350219974,1737701441208,-2018.76,0.00019589,3]
[350219975,1737701441218,-500.0,0.00019589,3]
[350219976,1737701441228,-500.0,0.00019589,3]
[350219977,1737701441238,-151.0,0.00019589,2]
[350219978,1737701441248,-500.0,0.00019589,3]
[350219979,1737701441258,-151.0,0.00019589,2]
[350219980,1737701441268,-500.0,0.00019589,3]
[350219981,1737701441278,-500.0,0.00019589,3]
[350219982,1737701441288,-151.0,0.00019589,2]
[350219983,1737701441298,-222.91361,0.00019589,2]
[350219984,1737701441309,-513.35,0.00019589,3]
[350219985,1737701441321,-500.0,0.00019589,3]
[350219986,1737701441330,-151.0,0.00019589,2]
[350219987,1737701441340,-500.0,0.00019589,3]
[350219988,1737701441350,-500.0,0.00019589,3]
[350219989,1737701441361,-151.0,0.00019589,2]
[350219990,1737701441371,-500.0,0.00019589,3]
[350219991,1737701441381,-9905.63,0.00019589,3]
[350219992,1737701441391,-5779.19,0.00019589,3]
[350219993,1737701441401,-500.0,0.00019589,3]
[350219994,1737701441411,-500.0,0.00019589,3]
[350219995,1737701441422,-500.0,0.00019589,3]
[350219996,1737701441432,-500.0,0.00019589,3]
[350219997,1737701441442,-500.0,0.00019589,3]
[350219998,1737701441451,-500.0,0.00019589,3]
[350219999,1737701441462,-500.0,0.00019589,3]
[350220000,1737701441474,-1099.24,0.00019589,3]
[350220001,1737701441484,-500.0,0.00019589,3]
[350220002,1737701441493,-500.0,0.00019589,3]
[350220003,1737701441502,-3086.27,0.00019589,3]
[350220004,1737701441514,-500.0,0.00019589,3]
[350220005,1737701441524,-658.39,0.00019589,3]
[350220006,1737701441533,-168.178346,0.00019589,2]
[350220007,1737701441543,-168.178346,0.00019589,2]
[350220008,1737701441554,-985.18,0.00019589,3]
[350220009,1737701441563,-500.0,0.00019589,3]
[350220010,1737701441573,-500.0,0.00019589,3]
[350220011,1737701441583,-500.0,0.00019589,3]
[350220012,1737701441592,-151.0,0.00019589,2]
[350220013,1737701441601,-151.0,0.00019589,2]
[350220014,1737701441611,-1361.53,0.00019589,3]
[350220015,1737701441621,-500.0,0.00019589,3]
[350220016,1737701441630,-1428.19,0.00019589,3]
[350220017,1737701441639,-500.0,0.00019589,3]
[350220018,1737701441649,-500.0,0.00019589,3]
[350220019,1737701441659,-500.0,0.00019589,3]
[350220020,1737701441668,-500.0,0.00019589,3]
[350220021,1737701441678,-500.0,0.00019589,3]
[350220022,1737701441687,-511.23,0.00019589,3]
[350220023,1737701441696,-17282.4,0.00019589,3]
[350220024,1737701441706,-1130.6,0.00019589,3]
[350220025,1737701441715,-500.0,0.00019589,3]
[350220026,1737701441725,-500.0,0.00019589,3]
[350220027,1737701441734,-2381.07,0.00019589,3]
[350220028,1737701441743,-227.31368842,0.00019589,3]
[350220029,1737701441753,-604.58,0.00019589,3]
[350220030,1737701441762,-500.0,0.00019589,3]
[350220031,1737701441772,-500.0,0.00019589,3]
[350220032,1737701441781,-5041.03,0.00019589,3]
[350220033,1737701441791,-500.0,0.00019589,3]
[350220034,1737701441801,-207.025353,0.00019589,2]
[350220035,1737701441815,-207.025353,0.00019589,2]
[350220036,1737701441825,-151.0,0.00019589,2]
[350220037,1737701441835,-500.0,0.00019589,3]
[350220038,1737701441845,-151.0,0.00019589,2]
[350220039,1737701441855,-531.79663827,0.00019589,3]
[350220040,1737701441865,-207.025353,0.00019589,2]
[350220041,1737701441874,-207.025353,0.00019589,2]
[350220042,1737701441885,-500.0,0.00019589,3]
[350220043,1737701441895,-500.0,0.00019589,3]
[350220044,1737701441906,-762.6,0.00019589,3]
[350220045,1737701441916,-1140.0,0.00019589,3]
[350220046,1737701441926,-500.0,0.00019589,3]
[350220047,1737701441936,-500.0,0.00019589,3]
[350220048,1737701441945,-577.15,0.00019589,3]
[350220049,1737701441955,-500.0,0.00019589,3]
[350220050,1737701441965,-8272.34,0.000196,2]
[350220051,1737701441975,-347.213,0.00019606,2]
[350220052,1737701441986,-2545.60194711,0.00019626,2]
[350220053,1737701441996,-169.07007,0.00019711,2]
[350220054,1737701442006,-2453.54209838,0.00019711,2]
[350220055,1737701442015,-1000.0,0.00019721,2]
[350220056,1737701442025,-1000.0,0.00019721,2]
[350220057,1737701442034,-151.0,0.00019726,2]
[350220058,1737701442043,-151.0,0.00019726,2]
[350220059,1737701442056,-151.0,0.00019726,2]
[350220060,1737701442065,-500.0,0.00019726,3]
[350220061,1737701442075,-500.0,0.00019726,3]
[350220062,1737701442084,-500.0,0.00019726,3]
[350220063,1737701442094,-500.0,0.00019726,3]
[350220064,1737701442102,-151.0,0.00019726,2]
[350220065,1737701442112,-500.0,0.00019726,3]
[350220066,1737701442121,-217.199151,0.00019726,2]
[350220067,1737701442131,-339.75111075,0.00019726,3]
[350220068,1737701442141,-263.041668,0.00019726,2]
[350220069,1737701442151,-263.041668,0.00019726,2]
[350220070,1737701442161,-500.0,0.00019726,3]
[350220071,1737701442171,-500.0,0.00019726,3]
[350220072,1737701442183,-500.0,0.00019726,3]
[350220073,1737701442193,-500.0,0.00019726,3]
[350220074,1737701442202,-500.0,0.00019726,3]
[350220075,1737701442211,-500.0,0.00019726,3]
[350220076,1737701442221,-566.4,0.00019726,3]
[350220077,1737701442230,-500.0,0.00019726,3]
[350220078,1737701442240,-500.0,0.00019726,3]
[350220079,1737701442250,-500.0,0.00019726,3]
[350220080,1737701442260,-500.0,0.00019726,3]
[350220081,1737701442270,-500.0,0.00019726,3]
[350220082,1737701442280,-696.83,0.00019726,3]
[350220083,1737701442289,-500.0,0.00019726,3]
[350220084,1737701442298,-500.0,0.00019726,3]
[350220085,1737701442308,-500.0,0.00019726,3]
[350220086,1737701442317,-500.0,0.00019726,3]
[350220087,1737701442327,-544.78075,0.00019726,2]
[350220088,1737701442337,-500.0,0.00019726,3]
[350220089,1737701442346,-173.04126,0.00019726,2]
[350220090,1737701442356,-500.0,0.00019726,3]
[350220091,1737701442365,-500.0,0.00019726,3]
[350220092,1737701442375,-500.0,0.00019726,3]
[350220093,1737701442385,-500.0,0.00019726,3]
[350220094,1737701442395,-500.0,0.00019726,3]
[350220095,1737701442405,-500.0,0.00019726,3]
[350220096,1737701442414,-500.0,0.00019726,3]
[350220097,1737701442424,-500.0,0.00019726,3]
[350220098,1737701442433,-500.0,0.00019726,3]
[350220099,1737701442442,-500.0,0.00019726,3]
[350220100,1737701442452,-500.0,0.00019726,3]
[350220101,1737701442463,-500.0,0.00019726,3]
[350220102,1737701442479,-500.0,0.00019726,3]
[350220103,1737701442489,-500.0,0.00019726,3]
[350220104,1737701442498,-500.0,0.00019726,3]
[350220105,1737701442508,-777.78,0.00019726,2]
[350220106,1737701442518,-500.0,0.00019726,3]
[350220107,1737701442528,-500.0,0.00019726,3]
[350220108,1737701442539,-151.0,0.00019726,2]
[350220109,1737701442549,-151.0,0.00019726,2]
[350220111,1737701442562,-500.0,0.00019726,3]
[350220113,1737701442572,-1570.85,0.00019726,3]
[350220114,1737701442581,-500.0,0.00019726,3]
[350220116,1737701442591,-522.34,0.00019726,3]
[350220117,1737701442602,-2018.76,0.00019726,3]
[350220118,1737701442612,-500.0,0.00019726,3]
[350220119,1737701442622,-500.0,0.00019726,3]
[350220120,1737701442632,-500.0,0.00019726,3]
[350220121,1737701442643,-151.0,0.00019726,2]
[350220122,1737701442652,-500.0,0.00019726,3]
[350220123,1737701442662,-500.0,0.00019726,3]
[350220124,1737701442672,-513.35,0.00019726,3]
[350220125,1737701442682,-500.0,0.00019726,3]
[350220126,1737701442692,-151.0,0.00019726,2]
[350220128,1737701442702,-151.0,0.00019726,2]
[350220129,1737701442711,-500.0,0.00019726,3]
[350220131,1737701442721,-500.0,0.00019726,3]
[350220133,1737701442731,-168.893907,0.00019726,2]
[350220136,1737701442740,-500.0,0.00019726,3]
[350220139,1737701442750,-9905.63,0.00019726,3]
[350220142,1737701442762,-5779.19,0.00019726,3]
[350220144,1737701442780,-500.0,0.00019726,3]
[350220146,1737701442791,-500.0,0.00019726,3]
[350220147,1737701442801,-500.0,0.00019726,3]
[350220148,1737701442813,-500.0,0.00019726,3]
[350220149,1737701442823,-500.0,0.00019726,3]
[350220150,1737701442832,-500.0,0.00019726,3]
[350220151,1737701442842,-1099.24,0.00019726,3]
[350220152,1737701442852,-500.0,0.00019726,3]
[350220153,1737701442861,-500.0,0.00019726,3]
[350220154,1737701442872,-3086.27,0.00019726,3]
[350220155,1737701442882,-500.0,0.00019726,3]
[350220156,1737701442892,-658.39,0.00019726,3]
[350220157,1737701442902,-168.178346,0.00019726,2]
[350220158,1737701442912,-168.178346,0.00019726,2]
[350220159,1737701442921,-168.178346,0.00019726,2]
[350220160,1737701443005,-168.178346,0.00019726,2]
[350220161,1737701443015,-985.18,0.00019726,3]
[350220162,1737701443024,-500.0,0.00019726,3]
[350220163,1737701443034,-500.0,0.00019726,3]
[350220165,1737701443043,-500.0,0.00019726,3]
[350220166,1737701443053,-151.0,0.00019726,2]
[350220167,1737701443063,-1361.53,0.00019726,3]
[350220168,1737701443073,-500.0,0.00019726,3]
[350220169,1737701443082,-1428.19,0.00019726,3]
[350220170,1737701443092,-500.0,0.00019726,3]
[350220171,1737701443102,-500.0,0.00019726,3]
[350220172,1737701443112,-500.0,0.00019726,3]
[350220173,1737701443123,-500.0,0.00019726,3]
[350220174,1737701443132,-500.0,0.00019726,3]
[350220175,1737701443142,-511.23,0.00019726,3]
[350220176,1737701443152,-17282.4,0.00019726,3]
[350220177,1737701443161,-1130.6,0.00019726,3]
[350220178,1737701443171,-500.0,0.00019726,3]
[350220179,1737701443180,-500.0,0.00019726,3]
[350220180,1737701443189,-2381.07,0.00019726,3]
[350220181,1737701443199,-604.58,0.00019726,3]
[350220182,1737701443208,-500.0,0.00019726,3]
[350220183,1737701443218,-500.0,0.00019726,3]
[350220184,1737701443227,-5041.03,0.00019726,3]
[350220185,1737701443238,-500.0,0.00019726,3]
[350220186,1737701443248,-207.025353,0.00019726,2]
[350220188,1737701443258,-500.0,0.00019726,3]
[350220190,1737701443268,-174.624783,0.00019726,2]
[350220192,1737701443277,-207.025353,0.00019726,2]
[350220194,1737701443287,-500.0,0.00019726,3]
[350220196,1737701443299,-500.0,0.00019726,3]
[350220198,1737701443314,-762.6,0.00019726,3]
[350220200,1737701443324,-1140.0,0.00019726,3]
[350220202,1737701443333,-500.0,0.00019726,3]
[350220203,1737701443343,-500.0,0.00019726,3]
[350220204,1737701443353,-577.15,0.00019726,3]
[350220205,1737701443362,-159.34,0.00019726,2]
[350220207,1737701443373,-151.0,0.000198,2]
[350220209,1737701443382,-204.1733212,0.00019808,2]
[350220211,1737701443392,-500.0,0.00019817,2]
[350220213,1737701443401,-259.57339185,0.00019817,2]
[350220215,1737701443411,-802.252954,0.0001985,2]
[350220217,1737701443420,-151.0,0.00019863,2]
[350220218,1737701443430,-500.0,0.00019863,3]
[350220220,1737701443439,-500.0,0.00019863,3]
[350220222,1737701443449,-500.0,0.00019863,3]
[350220223,1737701443458,-151.0,0.00019863,2]
[350220224,1737701443470,-500.0,0.00019863,3]
[350220225,1737701443482,-263.041668,0.00019863,2]
[350220226,1737701443492,-263.041668,0.00019863,2]
[350220227,1737701443501,-500.0,0.00019863,3]
[350220228,1737701443511,-500.0,0.00019863,3]
[350220229,1737701443521,-506.52,0.00019863,3]
[350220230,1737701443530,-500.0,0.00019863,3]
[350220231,1737701443539,-640.62,0.00019863,3]
[350220232,1737701443549,-500.0,0.00019863,3]
[350220233,1737701443560,-566.4,0.00019863,3]
[350220234,1737701443570,-500.0,0.00019863,3]
[350220235,1737701443579,-252.14548916,0.00019863,3]
[350220236,1737701443588,-500.0,0.00019863,3]
[350220237,1737701443598,-500.0,0.00019863,3]
[350220238,1737701443607,-330.04514413,0.00019863,3]
[350220239,1737701443617,-696.83,0.00019863,3]
[350220240,1737701443627,-500.0,0.00019863,3]
[350220241,1737701443636,-500.0,0.00019863,3]
[350220242,1737701443646,-529.64,0.00019863,3]
[350220243,1737701443655,-544.78075,0.00019863,2]
[350220244,1737701443665,-500.0,0.00019863,3]
[350220245,1737701443675,-577.2,0.00019863,3]
[350220246,1737701443685,-500.0,0.00019863,3]
[350220247,1737701443695,-173.04126,0.00019863,2]
[350220248,1737701443704,-173.04126,0.00019863,2]
[350220249,1737701443713,-505.92,0.00019863,3]
[350220250,1737701443723,-500.0,0.00019863,3]
[350220251,1737701443732,-500.0,0.00019863,3]
[350220252,1737701443742,-500.0,0.00019863,3]
[350220253,1737701443751,-500.0,0.00019863,3]
[350220254,1737701443760,-500.0,0.00019863,3]
[350220255,1737701443770,-500.0,0.00019863,3]
[350220256,1737701443780,-500.0,0.00019863,3]
[350220257,1737701443789,-500.0,0.00019863,3]
[350220258,1737701443798,-500.0,0.00019863,3]
[350220259,1737701443810,-500.0,0.00019863,3]
[350220260,1737701443819,-500.0,0.00019863,3]
[350220261,1737701443829,-500.0,0.00019863,3]
[350220262,1737701443838,-777.78,0.00019863,2]
[350220263,1737701443847,-500.0,0.00019863,3]
[350220264,1737701443857,-500.0,0.00019863,3]
[350220265,1737701443866,-151.0,0.00019863,2]
[350220266,1737701443875,-500.0,0.00019863,3]
[350220267,1737701443884,-1570.85,0.00019863,3]
[350220268,1737701443894,-500.0,0.00019863,3]
[350220269,1737701443903,-522.34,0.00019863,3]
[350220270,1737701443912,-2018.76,0.00019863,3]
[350220271,1737701443922,-500.0,0.00019863,3]
[350220272,1737701443931,-500.0,0.00019863,3]
[350220273,1737701443941,-500.0,0.00019863,3]
[350220274,1737701443951,-151.0,0.00019863,2]
[350220275,1737701443960,-500.0,0.00019863,3]
[350220276,1737701443969,-500.0,0.00019863,3]
[350220277,1737701443978,-513.35,0.00019863,3]
[350220278,1737701443987,-500.0,0.00019863,3]
[350220279,1737701443997,-151.0,0.00019863,2]
[350220280,1737701444006,-218.69947285,0.00019863,3]
[350220281,1737701444015,-500.0,0.00019863,3]
[350220282,1737701444025,-498.30517076,0.00019863,3]
[350220283,1737701444034,-9905.63,0.00019863,3]
[350220284,1737701444043,-5779.19,0.00019863,3]
[350220285,1737701444053,-500.0,0.00019863,3]
[350220286,1737701444064,-342.38,0.00019863,3]
[350220287,1737701444073,-500.0,0.00019863,3]
[350220288,1737701444082,-500.0,0.00019863,3]
[350220289,1737701444092,-500.0,0.00019863,3]
[350220290,1737701444102,-500.0,0.00019863,3]
[350220291,1737701444111,-1099.24,0.00019863,3]
[350220292,1737701444120,-500.0,0.00019863,3]
[350220293,1737701444130,-500.0,0.00019863,3]
[350220294,1737701444139,-3086.27,0.00019863,3]
[350220295,1737701444149,-500.0,0.00019863,3]
[350220296,1737701444158,-658.39,0.00019863,3]
[350220297,1737701444167,-168.178346,0.00019863,2]
[350220298,1737701444176,-168.178346,0.00019863,2]
[350220299,1737701444186,-985.18,0.00019863,3]
[350220300,1737701444195,-500.0,0.00019863,3]
[350220301,1737701444204,-500.0,0.00019863,3]
[350220302,1737701444213,-151.0,0.00019863,2]
[350220303,1737701444223,-151.0,0.00019863,2]
[350220304,1737701444232,-1361.53,0.00019863,3]
[350220305,1737701444242,-500.0,0.00019863,3]
[350220306,1737701444251,-1428.19,0.00019863,3]
[350220307,1737701444262,-500.0,0.00019863,3]
[350220308,1737701444271,-500.0,0.00019863,3]
[350220309,1737701444281,-500.0,0.00019863,3]
[350220310,1737701444291,-500.0,0.00019863,3]
[350220311,1737701444301,-500.0,0.00019863,3]
[350220312,1737701444313,-511.23,0.00019863,3]
[350220313,1737701444322,-17282.4,0.00019863,3]
[350220314,1737701444331,-1130.6,0.00019863,3]
[350220315,1737701444341,-500.0,0.00019863,3]